[Event "Asian Amateur Rapid Women 2024"]
[Site "Al Ain"]
[Date "2024.12.15"]
[Round "4.7"]
[White "Olandag, Meghan Gabrielle"]
[Black "Daneshpour, Aram"]
[Result "1-0"]
[ECO "C42"]
[WhiteElo "1479"]
[BlackElo "1563"]
[Annotator "NA RC"]
[PlyCount "160"]
[EventDate "2024.12.15"]
[EventType "swiss"]
[EventCountry "UAE"]
[SourceTitle "playchess.com"]
[Source "ChessBase"]
[SourceQuality "1"]
[TimeControl "900+10"]

1. e4 {[%emt 0:00:02]} e5 {[%emt 0:00:01]} 2. Nf3 {[%emt 0:00:02]} Nf6 {[%emt 0:00:03]} 3. Nxe5 {[%emt 0:00:12]} d6 {[%emt 0:00:01]} 4. Nc4 {[%emt 0:00:29]} Nxe4 {[%emt 0:00:09]} 5. Nc3 {[%emt 0:00:34]} Nxc3 {[%emt 0:00:09]} 6. dxc3 {[%emt 0:00:03]} d5 {[%emt 0:00:04]} 7. Ne3 {[%emt 0:00:18]} Be6 {[%emt 0:00:15]} 8. Bd3 {[%emt 0:01:02]} Bd6 {[%emt 0:01:22]} 9. O-O {[%emt 0:00:24]} c6 {[%emt 0:00:08]} 10. Nf5 {[%emt 0:00:33]} Bxf5 {[%emt 0:00:52]} 11. Bxf5 {[%emt 0:00:02]} O-O {[%emt 0:00:18]} 12. Qg4 {[%emt 0:01:00]} Qc7 {[%emt 0:05:04]} 13. h4 {[%emt 0:00:58]} Rd8 {[%emt 0:00:58]} 14. Bh6 {[%emt 0:01:18]} Be5 {[%emt 0:00:14]} 15. Rfe1 {[%emt 0:01:26]} Nd7 {[%emt 0:02:23]} 16. f4 {[%emt 0:01:45]} Bf6 {[%emt 0:00:25]} 17. Re7 {[%emt 0:00:16]} Qb6+ {[%emt 0:01:36]} 18. Kh1 {[%emt 0:00:20]} Nf8 {[%emt 0:01:23]} 19. h5 {[%emt 0:03:46]} Qf2 {[%emt 0:01:54]} 20. g3 {[%emt 0:02:14]} Re8 {[%emt 0:00:29]} 21. Rxe8 {[%emt 0:01:16]} Rxe8 {[%emt 0:00:02]} 22. Bg5 {[%emt 0:00:50]} Re2 {[%emt 0:00:21]} 23. Qh3 {[%emt 0:00:00]} Bxg5 {[%emt 0:00:11]} 24. fxg5 {[%emt 0:00:00]} Qf3+ {[%emt 0:00:11]} 25. Kg1 {[%emt 0:00:00]} Qf2+ {[%emt 0:00:24]} 26. Kh1 {[%emt 0:00:00]} Qf3+ {[%emt 0:00:17]} 27. Kg1 {[%emt 0:00:00]} Re3 {[%emt 0:00:15]} 28. Kh2 {[%emt 0:00:09]} Qf2+ {[%emt 0:00:04]} 29. Kh1 {[%emt 0:00:02]} Rxg3 {[%emt 0:00:04]} 30. Qf1 {[%emt 0:00:20]} Qxf1+ {[%emt 0:00:06]} 31. Rxf1 {[%emt 0:00:01]} Rxg5 {[%emt 0:00:03]} 32. Bc8 {[%emt 0:00:26]} Rxh5+ {[%emt 0:00:03]} 33. Kg2 {[%emt 0:00:02]} b6 {[%emt 0:00:07]} 34. Bb7 {[%emt 0:00:01]} c5 {[%emt 0:00:03]} 35. Rd1 {[%emt 0:00:02]} Ne6 {[%emt 0:00:10]} 36. Kf3 {[%emt 0:00:32]} d4 {[%emt 0:00:20]} 37. cxd4 {[%emt 0:00:07]} Nxd4+ {[%emt 0:00:05]} 38. Ke3 {[%emt 0:00:05]} Kf8 {[%emt 0:00:22]} 39. c3 {[%emt 0:00:14]} Nf5+ {[%emt 0:00:12]} 40. Kf4 {[%emt 0:00:01]} Ke7 {[%emt 0:00:11]} 41. Bf3 {[%emt 0:00:04]} Rh3 {[%emt 0:00:18]} 42. Bg4 {[%emt 0:00:11]} Ne3 {[%emt 0:00:15]} 43. Rd7+ {[%emt 0:00:06]} Ke8 {[%emt 0:00:07]} 44. Bxh3 {[%emt 0:00:01]} g5+ {[%emt 0:00:11]} 45. Kxg5 {[%emt 0:00:10]} f5 {[%emt 0:00:05]} 46. Rxh7 {[%emt 0:00:13]} a6 {[%emt 0:00:14]} 47. Bxf5 {[%emt 0:00:01]} Nd5 {[%emt 0:00:04]} 48. Rh8+ {[%emt 0:00:02]} Ke7 {[%emt 0:00:02]} 49. Rh6 {[%emt 0:00:10]} Nc7 {[%emt 0:00:14]} 50. Rxb6 {[%emt 0:00:03]} Kd8 {[%emt 0:00:07]} 51. Rd6+ {[%emt 0:00:02]} Ke8 {[%emt 0:00:07]} 52. Rd7 {[%emt 0:00:11]} Nb5 {[%emt 0:00:15]} 53. Rd5 {[%emt 0:00:04]} c4 {[%emt 0:00:07]} 54. Bc8 {[%emt 0:00:07]} Nc7 {[%emt 0:00:05]} 55. Re5+ {[%emt 0:00:04]} Kd8 {[%emt 0:00:03]} 56. Bb7 {[%emt 0:00:03]} Kd7 {[%emt 0:00:08]} 57. Bd5 {[%emt 0:00:05]} Kd6 {[%emt 0:00:05]} 58. Re4 {[%emt 0:00:34]} Kxd5 {[%emt 0:00:09]} 59. Kf5 {[%emt 0:00:05]} Nb5 {[%emt 0:00:07]} 60. Re5+ {[%emt 0:00:03]} Kc6 {[%emt 0:00:06]} 61. Ke4 {[%emt 0:00:12]} Kd6 {[%emt 0:00:10]} 62. a4 {[%emt 0:00:27]} Nc7 {[%emt 0:00:11]} 63. Kd4 {[%emt 0:00:09]} Na8 {[%emt 0:00:22]} 64. Kxc4 {[%emt 0:00:05]} Nb6+ {[%emt 0:00:04]} 65. Kd4 {[%emt 0:00:01]} Nxa4 {[%emt 0:00:05]} 66. Ra5 {[%emt 0:00:06]} Nxb2 {[%emt 0:00:11]} 67. Rxa6+ {[%emt 0:00:01]} Kc7 {[%emt 0:00:07]} 68. Kc5 {[%emt 0:00:08]} Nd3+ {[%emt 0:00:19]} 69. Kd4 {[%emt 0:00:04]} Nc1 {[%emt 0:00:14]} 70. c4 {[%emt 0:00:04]} Nb3+ {[%emt 0:00:07]} 71. Kc3 {[%emt 0:00:03]} Nc5 {[%emt 0:00:04]} 72. Rh6 {[%emt 0:00:06]} Kd7 {[%emt 0:00:33]} 73. Kd4 {[%emt 0:00:07]} Ne6+ {[%emt 0:00:12]} 74. Rxe6 {[%emt 0:00:22]} Kxe6 {[%emt 0:00:02]} 75. Kc5 {[%emt 0:00:02]} Kd7 {[%emt 0:00:02]} 76. Kb6 {[%emt 0:00:05]} Kc8 {[%emt 0:00:00]} 77. Kc6 {[%emt 0:00:01]} Kb8 {[%emt 0:00:03]} 78. Kd7 {[%emt 0:00:01]} Kb7 {[%emt 0:00:02]} 79. c5 {[%emt 0:00:01]} Kb8 {[%emt 0:00:01]} 80. c6 {[%emt 0:00:00]} Ka7 {[%emt 0:00:01]} 1-0

[Event "Asian Amateur Rapid Women 2024"]
[Site "Al Ain"]
[Date "2024.12.15"]
[Round "4.8"]
[White "Mariam Khalifa AlQubaisi"]
[Black "Ahoud Eisa Mohamed"]
[Result "0-1"]
[ECO "C67"]
[WhiteElo "1438"]
[BlackElo "1553"]
[Annotator "NA RC"]
[PlyCount "94"]
[EventDate "2024.12.15"]
[EventType "swiss"]
[EventCountry "UAE"]
[SourceTitle "playchess.com"]
[Source "ChessBase"]
[SourceQuality "1"]
[TimeControl "900+10"]

1. e4 {[%emt 0:00:01]} e5 {[%emt 0:00:01]} 2. Nf3 {[%emt 0:00:01]} Nc6 {[%emt 0:00:02]} 3. Bb5 {[%emt 0:00:01]} Nf6 {[%emt 0:00:01]} 4. O-O {[%emt 0:00:01]} Nxe4 {[%emt 0:00:02]} 5. Re1 {[%emt 0:00:01]} Nd6 {[%emt 0:00:01]} 6. Nxe5 {[%emt 0:00:03]} Nxe5 {[%emt 0:00:02]} 7. Rxe5+ {[%emt 0:00:02]} Be7 {[%emt 0:00:02]} 8. Nc3 {[%emt 0:00:03]} O-O {[%emt 0:00:11]} 9. Bf1 {[%emt 0:00:18]} Bf6 {[%emt 0:00:01]} 10. Re1 {[%emt 0:00:03]} Re8 {[%emt 0:00:01]} 11. Rxe8+ {[%emt 0:00:22]} Nxe8 {[%emt 0:00:02]} 12. d4 {[%emt 0:00:01]} d5 {[%emt 0:00:02]} 13. Bf4 {[%emt 0:00:13]} c6 {[%emt 0:00:05]} 14. Qd2 {[%emt 0:00:27]} Nd6 {[%emt 0:00:04]} 15. Bxd6 {[%emt 0:00:09]} Qxd6 {[%emt 0:00:02]} 16. Rd1 {[%emt 0:00:03]} Bf5 {[%emt 0:00:04]} 17. g3 {[%emt 0:00:22]} Re8 {[%emt 0:00:04]} 18. Bg2 {[%emt 0:00:06]} h6 {[%emt 0:00:03]} 19. Ne2 {[%emt 0:00:09]} b6 {[%emt 0:00:39]} 20. Qf4 {[%emt 0:01:22]} Qxf4 {[%emt 0:00:53]} 21. Nxf4 {[%emt 0:00:01]} Bxc2 {[%emt 0:00:03]} 22. Rc1 {[%emt 0:00:33]} Ba4 {[%emt 0:00:03]} 23. b3 {[%emt 0:00:06]} Bb5 {[%emt 0:00:01]} 24. a4 {[%emt 0:00:08]} Ba6 {[%emt 0:00:01]} 25. h3 {[%emt 0:00:45]} Bb7 {[%emt 0:00:05]} 26. Rd1 {[%emt 0:00:46]} Bg5 {[%emt 0:00:03]} 27. Nd3 {[%emt 0:00:18]} Bf6 {[%emt 0:00:32]} 28. Nb4 {[%emt 0:00:10]} a5 {[%emt 0:00:06]} 29. Nc2 {[%emt 0:00:39]} Re2 {[%emt 0:00:06]} 30. Ne3 {[%emt 0:00:01]} Rb2 {[%emt 0:00:06]} 31. Rd3 {[%emt 0:00:19]} Ba6 {[%emt 0:00:02]} 32. Rc3 {[%emt 0:00:11]} Bxd4 {[%emt 0:00:50]} 33. Rxc6 {[%emt 0:00:02]} Rxb3 {[%emt 0:00:33]} 34. Nxd5 {[%emt 0:00:14]} Rb1+ {[%emt 0:00:19]} 35. Kh2 {[%emt 0:00:09]} g6 {[%emt 0:00:49]} 36. Ne3 {[%emt 0:00:53]} Rb2 {[%emt 0:00:49]} 37. Kg1 {[%emt 0:00:49]} Ra2 {[%emt 0:01:50]} 38. Bd5 {[%emt 0:00:52]} Rxa4 {[%emt 0:00:19]} 39. Rxg6+ {[%emt 0:00:12]} Kh7 {[%emt 0:00:14]} 40. Bxf7 {[%emt 0:00:12]} Ra1+ {[%emt 0:01:03]} 41. Kg2 {[%emt 0:00:43]} Bb7+ {[%emt 0:00:05]} 42. f3 {[%emt 0:03:06]} Bxe3 {[%emt 0:00:06]} 43. h4 {[%emt 0:01:03]} Rg1+ {[%emt 0:00:13]} 44. Kh3 {[%emt 0:00:41]} Bxf3 {[%emt 0:00:44]} 45. g4 {[%emt 0:00:16]} Bf2 {[%emt 0:00:24]} 46. Rxh6+ {[%emt 0:01:06]} Kxh6 {[%emt 0:00:05]} 47. g5+ {[%emt 0:00:03]} Kg7 {[%emt 0:00:02]} 0-1

[Event "Asian Amateur Rapid Women 2024"]
[Site "Al Ain"]
[Date "2024.12.15"]
[Round "4.12"]
[White "Mikheeva, Vasilisa"]
[Black "Saeidpour, Mona"]
[Result "0-1"]
[ECO "D02"]
[WhiteElo "1436"]
[BlackElo "1905"]
[Annotator "RC"]
[PlyCount "128"]
[EventDate "2024.12.15"]
[EventType "swiss"]
[EventCountry "UAE"]
[SourceTitle "playchess.com"]
[Source "ChessBase"]
[SourceQuality "1"]
[TimeControl "900+10"]

1. d4 {[%emt 0:00:01]} d5 {[%emt 0:00:01]} 2. Nf3 {[%emt 0:00:02]} c6 {[%emt 0:00:03]} 3. Bf4 {[%emt 0:00:04]} Nf6 {[%emt 0:00:02]} 4. e3 {[%emt 0:00:03]} Bf5 {[%emt 0:00:13]} 5. c4 {[%emt 0:00:13]} e6 {[%emt 0:00:10]} 6. Nc3 {[%emt 0:00:06]} Nbd7 {[%emt 0:00:25]} 7. Be2 {[%emt 0:00:23]} dxc4 {[%emt 0:00:31]} 8. Bxc4 {[%emt 0:00:10]} Be7 {[%emt 0:00:12]} 9. O-O {[%emt 0:00:04]} O-O {[%emt 0:00:31]} 10. h3 {[%emt 0:00:06]} c5 {[%emt 0:00:57]} 11. dxc5 {[%emt 0:00:25]} Nxc5 {[%emt 0:00:16]} 12. Ne5 {[%emt 0:01:02]} Qb6 {[%emt 0:00:54]} 13. b3 {[%emt 0:00:32]} Rfd8 {[%emt 0:00:38]} 14. Qe2 {[%emt 0:00:58]} Nce4 {[%emt 0:02:46]} 15. Nxe4 {[%emt 0:00:26]} Nxe4 {[%emt 0:00:04]} 16. Nd3 {[%emt 0:01:20]} Rac8 {[%emt 0:01:50]} 17. Rac1 {[%emt 0:00:29]} Ba3 {[%emt 0:00:25]} 18. Rc2 {[%emt 0:00:25]} Qa5 {[%emt 0:01:58]} 19. Rd1 {[%emt 0:02:03]} b5 {[%emt 0:02:07]} 20. b4 {[%emt 0:01:59]} Qb6 {[%emt 0:00:26]} 21. Bb3 {[%emt 0:02:46]} Nc3 {[%emt 0:00:17]} 22. Qe1 {[%emt 0:00:28]} Nxd1 {[%emt 0:01:41]} 23. Rxc8 {[%emt 0:00:52]} Rxc8 {[%emt 0:00:05]} 24. Qxd1 {[%emt 0:00:11]} Qd8 {[%emt 0:00:24]} 25. Bc2 {[%emt 0:01:00]} Rc3 {[%emt 0:01:43]} 26. Qb1 {[%emt 0:00:55]} Rxd3 {[%emt 0:00:14]} 27. Bxd3 {[%emt 0:00:16]} Qxd3 {[%emt 0:00:08]} 28. Qxd3 {[%emt 0:01:07]} Bxd3 {[%emt 0:00:02]} 29. Bd6 {[%emt 0:00:06]} Bb1 {[%emt 0:00:04]} 30. Kf1 {[%emt 0:00:06]} Bxa2 {[%emt 0:00:02]} 31. Ke2 {[%emt 0:00:03]} Bd5 {[%emt 0:00:08]} 32. f3 {[%emt 0:00:06]} Bb2 {[%emt 0:00:04]} 33. e4 {[%emt 0:00:07]} Bc4+ {[%emt 0:00:01]} 34. Kd2 {[%emt 0:00:04]} Bd4 {[%emt 0:00:07]} 35. e5 {[%emt 0:00:19]} Bf1 {[%emt 0:00:04]} 36. g3 {[%emt 0:00:19]} Bxh3 {[%emt 0:00:10]} 37. Ke2 {[%emt 0:00:04]} f6 {[%emt 0:00:13]} 38. exf6 {[%emt 0:00:32]} gxf6 {[%emt 0:00:02]} 39. g4 {[%emt 0:00:01]} f5 {[%emt 0:00:04]} 40. Kd3 {[%emt 0:00:15]} Bb6 {[%emt 0:00:24]} 41. g5 {[%emt 0:00:07]} Kg7 {[%emt 0:00:08]} 42. f4 {[%emt 0:00:14]} Bg2 {[%emt 0:00:07]} 43. Be5+ {[%emt 0:00:14]} Kg6 {[%emt 0:00:02]} 44. Bd6 {[%emt 0:00:07]} Kh5 {[%emt 0:00:12]} 45. Be5 {[%emt 0:00:10]} Kg4 {[%emt 0:00:12]} 46. Bd6 {[%emt 0:00:18]} Kf3 {[%emt 0:00:12]} 47. Bc5 {[%emt 0:00:45]} Kxf4 {[%emt 0:00:14]} 48. Kd4 {[%emt 0:00:08]} Kxg5 {[%emt 0:00:07]} 49. Ke5 {[%emt 0:00:02]} Bd5 {[%emt 0:00:07]} 50. Be7+ {[%emt 0:00:09]} Kg4 {[%emt 0:00:04]} 51. Bc5 {[%emt 0:00:07]} Bxc5 {[%emt 0:00:08]} 52. bxc5 {[%emt 0:00:02]} f4 {[%emt 0:00:03]} 53. Kd6 {[%emt 0:00:02]} f3 {[%emt 0:00:02]} 54. c6 {[%emt 0:01:17]} Bxc6 {[%emt 0:00:02]} 55. Kxc6 {[%emt 0:00:00]} f2 {[%emt 0:00:01]} 56. Kxb5 {[%emt 0:00:00]} f1=Q+ {[%emt 0:02:23]} 57. Kc6 {[%emt 0:00:00]} a5 {[%emt 0:00:00]} 58. Kd6 {[%emt 0:00:00]} a4 {[%emt 0:00:00]} 59. Kxe6 {[%emt 0:00:00]} a3 {[%emt 0:00:00]} 60. Ke5 {[%emt 0:00:00]} a2 {[%emt 0:00:00]} 61. Ke6 {[%emt 0:00:00]} a1=Q {[%emt 0:00:00]} 62. Kd6 {[%emt 0:00:00]} Qfa6+ {[%emt 0:00:00]} 63. Kd5 {[%emt 0:00:00]} Qd1+ {[%emt 0:00:00]} 64. Ke4 {[%emt 0:00:00]} Qe6# {[%emt 0:00:00]} 0-1

[Event "Asian Amateur Rapid Women 2024"]
[Site "Al Ain"]
[Date "2024.12.15"]
[Round "4.15"]
[White "Al Khoori, Noora Mahmood Abdull"]
[Black "Rani Puja"]
[Result "0-1"]
[ECO "C63"]
[WhiteElo "1513"]
[BlackElo "1478"]
[Annotator "NA RC"]
[PlyCount "68"]
[EventDate "2024.12.15"]
[EventType "swiss"]
[EventCountry "UAE"]
[SourceTitle "playchess.com"]
[Source "ChessBase"]
[SourceQuality "1"]
[TimeControl "900+10"]

1. e4 {[%emt 0:00:03]} e5 {[%emt 0:00:02]} 2. Nf3 {[%emt 0:00:02]} Nc6 {[%emt 0:00:03]} 3. Bb5 {[%emt 0:00:02]} f5 {[%emt 0:00:02]} 4. d3 {[%emt 0:00:07]} fxe4 {[%emt 0:00:03]} 5. dxe4 {[%emt 0:00:05]} Nf6 {[%emt 0:00:08]} 6. Nc3 {[%emt 0:00:02]} Bd6 {[%emt 0:01:54]} 7. Bg5 {[%emt 0:00:10]} O-O {[%emt 0:00:17]} 8. Nd5 {[%emt 0:00:05]} Ne7 {[%emt 0:00:25]} 9. Nxf6+ {[%emt 0:00:09]} gxf6 {[%emt 0:00:05]} 10. Bh6 {[%emt 0:00:03]} Re8 {[%emt 0:00:41]} 11. Bc4+ {[%emt 0:00:02]} Kh8 {[%emt 0:00:04]} 12. Bf7 {[%emt 0:00:02]} Ng6 {[%emt 0:00:29]} 13. Bxe8 {[%emt 0:00:07]} Qxe8 {[%emt 0:00:03]} 14. O-O {[%emt 0:00:22]} Bc5 {[%emt 0:00:18]} 15. Qd5 {[%emt 0:00:34]} d6 {[%emt 0:00:11]} 16. Nd2 {[%emt 0:00:24]} Ne7 {[%emt 0:01:33]} 17. Qd3 {[%emt 0:00:09]} Qg6 {[%emt 0:00:13]} 18. Be3 {[%emt 0:00:35]} Bh3 {[%emt 0:00:23]} 19. g3 {[%emt 0:00:37]} Bxf1 {[%emt 0:00:08]} 20. Rxf1 {[%emt 0:00:09]} Bb6 {[%emt 0:00:31]} 21. Nf3 {[%emt 0:00:22]} Qf7 {[%emt 0:01:10]} 22. b3 {[%emt 0:00:54]} Rf8 {[%emt 0:00:33]} 23. Bh6 {[%emt 0:01:11]} Rg8 {[%emt 0:00:19]} 24. Kh1 {[%emt 0:02:30]} Qh5 {[%emt 0:00:18]} 25. Bd2 {[%emt 0:01:29]} Nc6 {[%emt 0:01:23]} 26. c3 {[%emt 0:01:42]} Nd8 {[%emt 0:01:21]} 27. Nh4 {[%emt 0:00:22]} Ne6 {[%emt 0:00:57]} 28. Nf5 {[%emt 0:00:13]} Nc5 {[%emt 0:00:14]} 29. Qd5 {[%emt 0:00:59]} Qe2 {[%emt 0:00:30]} 30. Re1 {[%emt 0:02:35]} Qxf2 {[%emt 0:00:27]} 31. Qf7 {[%emt 0:00:26]} Qf3+ {[%emt 0:00:19]} 32. Kg1 {[%emt 0:00:27]} Nxe4+ {[%emt 0:00:54]} 33. Be3 {[%emt 0:00:34]} Bxe3+ {[%emt 0:00:09]} 34. Rxe3 {[%emt 0:01:02]} Qf2+ {[%emt 0:00:07]} 0-1

[Event "Asian Amateur Rapid Women 2024"]
[Site "Al Ain"]
[Date "2024.12.15"]
[Round "4.16"]
[White "Lulwa Khalifa Alhammadi"]
[Black "Shamsa, Amer"]
[Result "1-0"]
[ECO "C54"]
[WhiteElo "1621"]
[BlackElo "1465"]
[Annotator "NA RC"]
[PlyCount "81"]
[EventDate "2024.12.15"]
[EventType "swiss"]
[EventCountry "UAE"]
[SourceTitle "playchess.com"]
[Source "ChessBase"]
[SourceQuality "1"]
[TimeControl "900+10"]

1. e4 {[%emt 0:00:03]} e5 {[%emt 0:00:00]} 2. Nf3 {[%emt 0:00:02]} Nc6 {[%emt 0:00:02]} 3. Bc4 {[%emt 0:00:02]} Bc5 {[%emt 0:00:02]} 4. c3 {[%emt 0:00:02]} Nf6 {[%emt 0:00:03]} 5. d3 {[%emt 0:00:02]} O-O {[%emt 0:00:23]} 6. b4 {[%emt 0:00:05]} Bb6 {[%emt 0:00:03]} 7. a4 {[%emt 0:00:02]} a5 {[%emt 0:00:05]} 8. b5 {[%emt 0:00:04]} Ne7 {[%emt 0:00:06]} 9. Nxe5 {[%emt 0:00:08]} d5 {[%emt 0:00:29]} 10. exd5 {[%emt 0:00:14]} Nexd5 {[%emt 0:00:07]} 11. Qb3 {[%emt 0:00:39]} Be6 {[%emt 0:00:11]} 12. O-O {[%emt 0:00:07]} h6 {[%emt 0:00:35]} 13. Nd2 {[%emt 0:00:34]} Re8 {[%emt 0:00:05]} 14. Ndf3 {[%emt 0:01:22]} Qd6 {[%emt 0:01:12]} 15. d4 {[%emt 0:01:07]} Rab8 {[%emt 0:00:54]} 16. Bd2 {[%emt 0:01:42]} c5 {[%emt 0:00:37]} 17. Qa3 {[%emt 0:02:24]} Qc7 {[%emt 0:01:26]} 18. Rac1 {[%emt 0:00:43]} cxd4 {[%emt 0:01:04]} 19. cxd4 {[%emt 0:00:29]} Qd8 {[%emt 0:00:58]} 20. h3 {[%emt 0:00:55]} Bf5 {[%emt 0:01:28]} 21. Bd3 {[%emt 0:02:14]} Bxd3 {[%emt 0:02:14]} 22. Qxd3 {[%emt 0:01:00]} Nc7 {[%emt 0:00:36]} 23. Be3 {[%emt 0:00:56]} Ne6 {[%emt 0:00:49]} 24. Rfd1 {[%emt 0:00:36]} Qd5 {[%emt 0:00:19]} 25. Nc4 {[%emt 0:03:48]} Bd8 {[%emt 0:01:23]} 26. Qc3 {[%emt 0:00:00]} Be7 {[%emt 0:00:55]} 27. Nxa5 {[%emt 0:00:00]} Ne4 {[%emt 0:00:22]} 28. Qc4 {[%emt 0:00:00]} Qxc4 {[%emt 0:00:49]} 29. Nxc4 {[%emt 0:00:00]} Rbc8 {[%emt 0:00:11]} 30. Nce5 {[%emt 0:00:00]} Rcd8 {[%emt 0:00:27]} 31. Nd2 {[%emt 0:00:00]} Nxd2 {[%emt 0:01:20]} 32. Rxd2 {[%emt 0:00:00]} Bb4 {[%emt 0:00:02]} 33. Rd3 {[%emt 0:00:00]} Nc5 {[%emt 0:00:30]} 34. dxc5 {[%emt 0:00:00]} Rc8 {[%emt 0:00:46]} 35. Nf3 {[%emt 0:00:00]} Ba5 {[%emt 0:00:13]} 36. b6 {[%emt 0:00:00]} Bb4 {[%emt 0:00:02]} 37. Rb3 {[%emt 0:00:00]} Re4 {[%emt 0:00:10]} 38. Nd4 {[%emt 0:00:20]} Bxc5 {[%emt 0:00:04]} 39. Rbc3 {[%emt 0:00:02]} Re5 {[%emt 0:00:04]} 40. Nb3 {[%emt 0:00:07]} Rxe3 {[%emt 0:00:20]} 41. fxe3 {[%emt 0:00:05]} 1-0

[Event "Asian Amateur Rapid Women 2024"]
[Site "Al Ain"]
[Date "2024.12.15"]
[Round "5.1"]
[White "Wijesuriya, G P Y"]
[Black "Anoud Eisa Mohamed"]
[Result "0-1"]
[ECO "C67"]
[WhiteElo "1867"]
[BlackElo "1884"]
[Annotator "NA RC"]
[PlyCount "64"]
[EventDate "2024.12.15"]
[EventType "swiss"]
[EventCountry "UAE"]
[SourceTitle "playchess.com"]
[Source "ChessBase"]
[SourceQuality "1"]
[TimeControl "900+10"]

1. e4 {[%emt 0:00:16]} e5 {[%emt 0:00:02]} 2. Nf3 {[%emt 0:00:02]} Nc6 {[%emt 0:00:03]} 3. Bb5 {[%emt 0:00:03]} Nf6 {[%emt 0:00:02]} 4. O-O {[%emt 0:00:02]} Nxe4 {[%emt 0:00:04]} 5. d4 {[%emt 0:00:02]} Nd6 {[%emt 0:00:02]} 6. Bxc6 {[%emt 0:00:21]} dxc6 {[%emt 0:00:04]} 7. dxe5 {[%emt 0:00:30]} Nf5 {[%emt 0:00:02]} 8. Qxd8+ {[%emt 0:00:14]} Kxd8 {[%emt 0:00:02]} 9. c3 {[%emt 0:00:07]} Ke8 {[%emt 0:00:06]} 10. Nbd2 {[%emt 0:00:17]} Be7 {[%emt 0:00:08]} 11. Ne4 {[%emt 0:00:16]} b6 {[%emt 0:01:03]} 12. Bg5 {[%emt 0:00:11]} Bxg5 {[%emt 0:00:29]} 13. Nexg5 {[%emt 0:00:02]} h6 {[%emt 0:00:02]} 14. Ne4 {[%emt 0:00:11]} Be6 {[%emt 0:00:05]} 15. b3 {[%emt 0:00:48]} c5 {[%emt 0:00:13]} 16. Rad1 {[%emt 0:00:05]} Rd8 {[%emt 0:00:10]} 17. Rxd8+ {[%emt 0:00:49]} Kxd8 {[%emt 0:00:02]} 18. Rd1+ {[%emt 0:00:01]} Kc8 {[%emt 0:00:01]} 19. Kf1 {[%emt 0:00:09]} Kb7 {[%emt 0:00:10]} 20. Ke2 {[%emt 0:00:19]} a5 {[%emt 0:00:04]} 21. Nfd2 {[%emt 0:00:22]} g5 {[%emt 0:00:47]} 22. Nf6 {[%emt 0:00:15]} Nh4 {[%emt 0:00:15]} 23. g3 {[%emt 0:00:34]} Ng6 {[%emt 0:00:12]} 24. Nf3 {[%emt 0:00:23]} g4 {[%emt 0:00:12]} 25. Nh4 {[%emt 0:01:29]} Nxe5 {[%emt 0:02:33]} 26. f4 {[%emt 0:00:04]} gxf3+ {[%emt 0:00:06]} 27. Nxf3 {[%emt 0:00:02]} Nxf3 {[%emt 0:00:10]} 28. Kxf3 {[%emt 0:00:02]} a4 {[%emt 0:00:34]} 29. c4 {[%emt 0:02:22]} axb3 {[%emt 0:00:21]} 30. axb3 {[%emt 0:00:02]} Ra8 {[%emt 0:00:01]} 31. Rd3 {[%emt 0:00:22]} Ra1 {[%emt 0:00:14]} 32. h4 {[%emt 0:00:17]} Rf1+ {[%emt 0:00:06]} 0-1

[Event "Asian Amateur Rapid Women 2024"]
[Site "Al Ain"]
[Date "2024.12.15"]
[Round "5.2"]
[White "Ahoud Eisa Mohamed"]
[Black "Sabirova, Shakhnoza"]
[Result "1/2-1/2"]
[ECO "C41"]
[WhiteElo "1553"]
[BlackElo "1903"]
[Annotator "NA RC"]
[PlyCount "98"]
[EventDate "2024.12.15"]
[EventType "swiss"]
[EventCountry "UAE"]
[SourceTitle "playchess.com"]
[Source "ChessBase"]
[SourceQuality "1"]
[TimeControl "900+10"]

1. e4 {[%emt 0:00:02]} e5 {[%emt 0:00:08]} 2. Nf3 {[%emt 0:00:05]} d6 {[%emt 0:00:03]} 3. Bc4 {[%emt 0:00:05]} Be7 {[%emt 0:00:06]} 4. c3 {[%emt 0:00:10]} Nf6 {[%emt 0:00:09]} 5. Qe2 {[%emt 0:00:17]} Nc6 {[%emt 0:00:20]} 6. d4 {[%emt 0:00:09]} a6 {[%emt 0:00:45]} 7. Bb3 {[%emt 0:00:12]} Bg4 {[%emt 0:00:22]} 8. dxe5 {[%emt 0:00:21]} Nxe5 {[%emt 0:00:41]} 9. Nbd2 {[%emt 0:00:08]} O-O {[%emt 0:00:28]} 10. h3 {[%emt 0:00:07]} Bh5 {[%emt 0:00:11]} 11. Qe3 {[%emt 0:02:54]} Nfd7 {[%emt 0:00:35]} 12. Nxe5 {[%emt 0:00:45]} dxe5 {[%emt 0:00:13]} 13. Nf3 {[%emt 0:00:53]} Nc5 {[%emt 0:01:00]} 14. Bc2 {[%emt 0:00:10]} Qd6 {[%emt 0:00:18]} 15. O-O {[%emt 0:00:18]} Qf6 {[%emt 0:00:28]} 16. Nh2 {[%emt 0:04:30]} Ne6 {[%emt 0:00:25]} 17. g3 {[%emt 0:00:10]} Bc5 {[%emt 0:00:25]} 18. Qe1 {[%emt 0:00:33]} Ng5 {[%emt 0:00:32]} 19. Kg2 {[%emt 0:01:16]} Bf3+ {[%emt 0:00:42]} 20. Nxf3 {[%emt 0:00:07]} Qxf3+ {[%emt 0:00:06]} 21. Kh2 {[%emt 0:00:07]} Qh5 {[%emt 0:00:28]} 22. Bxg5 {[%emt 0:00:10]} Qxg5 {[%emt 0:00:02]} 23. Rd1 {[%emt 0:00:15]} Rad8 {[%emt 0:00:07]} 24. Qe2 {[%emt 0:00:06]} h5 {[%emt 0:00:55]} 25. Kg2 {[%emt 0:00:36]} h4 {[%emt 0:00:25]} 26. Qg4 {[%emt 0:00:03]} Qxg4 {[%emt 0:01:52]} 27. hxg4 {[%emt 0:00:03]} hxg3 {[%emt 0:00:07]} 28. Kxg3 {[%emt 0:00:05]} Bd6 {[%emt 0:00:19]} 29. Rh1 {[%emt 0:00:31]} g6 {[%emt 0:01:16]} 30. Rh6 {[%emt 0:00:16]} Kg7 {[%emt 0:00:20]} 31. Rdh1 {[%emt 0:00:03]} Kf6 {[%emt 0:00:25]} 32. Rd1 {[%emt 0:01:24]} Bc5 {[%emt 0:00:46]} 33. Rhh1 {[%emt 0:00:09]} Rd6 {[%emt 0:00:32]} 34. Rxd6+ {[%emt 0:00:05]} Bxd6 {[%emt 0:00:10]} 35. Bb3 {[%emt 0:00:14]} c6 {[%emt 0:00:21]} 36. Rh7 {[%emt 0:00:28]} b5 {[%emt 0:00:17]} 37. g5+ {[%emt 0:01:39]} Ke7 {[%emt 0:00:43]} 38. Kg4 {[%emt 0:00:48]} Bc5 {[%emt 0:00:30]} 39. Kg3 {[%emt 0:00:09]} a5 {[%emt 0:01:04]} 40. a4 {[%emt 0:00:13]} b4 {[%emt 0:00:18]} 41. cxb4 {[%emt 0:00:10]} Bxb4 {[%emt 0:00:24]} 42. Bc4 {[%emt 0:00:02]} Bd2 {[%emt 0:00:13]} 43. Kg4 {[%emt 0:00:08]} Bc1 {[%emt 0:00:22]} 44. b3 {[%emt 0:00:02]} Bf4 {[%emt 0:00:31]} 45. f3 {[%emt 0:00:22]} Ke8 {[%emt 0:01:04]} 46. Bd3 {[%emt 0:00:41]} Kd7 {[%emt 0:00:28]} 47. Bc4 {[%emt 0:00:02]} Ke7 {[%emt 0:00:02]} 48. Bd3 {[%emt 0:00:09]} Rd8 {[%emt 0:00:29]} 49. Bc4 {[%emt 0:00:01]} Rf8 {[%emt 0:00:14]} 1/2-1/2